bitfinex-derivatives/quotes_BTCF0:USTF0_20250630
["timestamp","ask_amount","ask_price","bid_price","bid_amount"]
[1751243095470,0.35111991,108810.0,108800.0,1.20131799]
[1751243095672,0.60256348,108810.0,108800.0,1.20131799]
[1751243095976,0.66546348,108810.0,108800.0,1.20131799]
[1751243096273,0.66546348,108810.0,108800.0,0.84051799]
[1751243097372,0.66546348,108810.0,108800.0,0.84151799]
[1751243097967,0.47162348,108810.0,108800.0,0.84151799]
[1751243098273,0.44470051,108810.0,108800.0,0.5908722]
[1751243098468,0.3408489,108810.0,108800.0,0.82629827]
[1751243098676,0.39845247,108810.0,108800.0,0.28610802]
[1751243098868,0.59229247,108810.0,108800.0,0.05327072]
[1751243099175,0.3408489,108810.0,108800.0,0.05327072]
[1751243099470,0.59229247,108810.0,108800.0,0.05327072]
[1751243100066,0.59229247,108810.0,108800.0,0.08964374]
[1751243100367,0.60940798,108810.0,108790.0,0.84926178]
[1751243100566,0.85170841,108810.0,108800.0,0.1470227]
[1751243100771,1.29699198,108810.0,108790.0,0.70684424]
[1751243100970,0.25144357,108800.0,108790.0,0.70684424]
[1751243101170,0.14105808,108800.0,108790.0,0.581343]
[1751243101474,0.31604357,108800.0,108790.0,0.68545819]
[1751243101674,0.34694357,108800.0,108790.0,0.68545819]
[1751243101872,0.49396637,108800.0,108790.0,0.37617295]
[1751243102074,0.49396637,108800.0,108790.0,0.37817295]
[1751243102271,0.49396637,108800.0,108790.0,0.52520915]
[1751243102272,0.34694357,108800.0,108790.0,0.52520915]
[1751243102475,0.34694357,108800.0,108790.0,0.5108362]
[1751243102869,1.37505152,108800.0,108790.0,0.14287473]
[1751243103070,1.41211325,108800.0,108790.0,0.19793738]
[1751243103277,1.32019727,108800.0,108790.0,0.16140977]
[1751243103476,1.46689997,108800.0,108780.0,0.6181248]
[1751243103779,1.18204357,108790.0,108780.0,0.63249852]
[1751243103981,0.0616,108790.0,108780.0,0.63249852]
[1751243104174,0.93088,108790.0,108780.0,0.6324984]
[1751243104676,0.93088,108790.0,108780.0,0.6344984]
[1751243104875,0.0616,108790.0,108780.0,0.6344984]
[1751243105176,0.0309,108800.0,108790.0,0.1470362]
[1751243105477,0.0309,108800.0,108790.0,0.5537098]
[1751243105677,0.0309,108800.0,108790.0,0.5858098]
[1751243105978,0.2247,108800.0,108790.0,0.5858098]
[1751243106278,0.47614357,108800.0,108790.0,0.5858098]
[1751243106572,1.12687576,108810.0,108800.0,0.1470227]
[1751243106779,1.38377576,108810.0,108800.0,0.1613963]
[1751243107073,1.02281576,108810.0,108800.0,0.0143736]
[1751243107273,1.27324077,108810.0,108790.0,0.6469388]
[1751243107473,1.27324077,108810.0,108800.0,0.1470227]
[1751243107877,1.52468434,108810.0,108800.0,0.1470227]
[1751243108066,1.16388434,108810.0,108800.0,0.1470227]
[1751243108376,1.44190464,108810.0,108800.0,0.1470227]
[1751243108572,1.45183666,108810.0,108800.0,0.1470227]
[1751243108779,1.45183666,108810.0,108800.0,0.1480227]
[1751243109276,1.09103666,108810.0,108800.0,0.19259447]
[1751243109576,1.49745559,108810.0,108800.0,0.22319447]
[1751243109767,0.62217559,108810.0,108800.0,0.22319447]
[1751243110182,1.13537559,108810.0,108800.0,0.22319447]
[1751243110476,1.49617559,108810.0,108800.0,0.22319447]
[1751243110873,1.13537559,108810.0,108800.0,0.22319447]
[1751243111067,1.13477559,108810.0,108800.0,0.22319447]
[1751243111375,1.20981094,108810.0,108800.0,0.22319447]
[1751243112073,1.20981094,108810.0,108800.0,0.25998503]
[1751243113079,1.36030014,108810.0,108800.0,0.11296233]
[1751243113284,2.1318715,108810.0,108800.0,0.14302835]
[1751243113577,0.74142273,108810.0,108800.0,0.14302835]
[1751243113781,0.88911848,108810.0,108800.0,0.05216233]
[1751243113980,1.84214768,108810.0,108800.0,0.05216233]
[1751243114182,1.48102768,108810.0,108800.0,0.05216233]
[1751243114384,1.84182768,108810.0,108800.0,0.05216233]
[1751243114683,1.84182768,108810.0,108800.0,0.06653392]
[1751243115188,1.73145371,108810.0,108800.0,0.06653392]
[1751243115380,2.01113927,108810.0,108800.0,0.06653392]
[1751243115679,2.76113927,108810.0,108800.0,0.06653392]
[1751243115979,0.1470258,108800.0,108780.0,0.6092113]
[1751243116189,1.07511977,108790.0,108780.0,0.35453173]
[1751243116477,1.0911256,108790.0,108780.0,0.4463926]
[1751243116682,0.83968203,108790.0,108780.0,0.4463926]
[1751243116890,0.96310372,108790.0,108780.0,0.4463926]
[1751243117080,0.28646372,108790.0,108780.0,0.4463926]
[1751243117282,1.15870372,108790.0,108780.0,0.4513926]
[1751243117484,0.90738015,108790.0,108780.0,0.4513926]
[1751243117680,0.03502015,108790.0,108780.0,0.4513926]
[1751243117882,0.90722015,108790.0,108780.0,0.4533926]
[1751243118082,0.03502015,108790.0,108780.0,0.2186497]
[1751243118389,1.08990429,108790.0,108780.0,0.18185635]
[1751243118578,1.08990429,108790.0,108780.0,0.17985635]
[1751243118779,0.21790429,108790.0,108780.0,0.18285635]
[1751243119383,1.08906429,108790.0,108780.0,0.18285635]
[1751243119785,0.90618015,108790.0,108780.0,0.18285635]
[1751243120180,0.90618015,108790.0,108780.0,0.1896353]
[1751243120879,0.03502015,108790.0,108780.0,0.1896353]
[1751243121080,0.03502015,108790.0,108780.0,0.07925496]
[1751243121385,1.08750429,108790.0,108780.0,0.06847601]
[1751243121689,1.08726429,108790.0,108780.0,0.10167601]
[1751243122376,1.08418562,108790.0,108780.0,0.10167601]
[1751243123091,0.90130148,108790.0,108780.0,0.10167601]
[1751243124387,0.90130148,108790.0,108780.0,0.50295507]
[1751243124577,0.03194148,108790.0,108780.0,0.50295507]
[1751243124783,0.89854148,108790.0,108780.0,0.75439864]
[1751243124990,0.22810148,108790.0,108780.0,0.74361958]
[1751243125183,0.03194148,108790.0,108780.0,0.74261958]
[1751243125384,0.41098562,108790.0,108780.0,0.74261958]
[1751243125986,0.41098562,108790.0,108780.0,0.39949327]
[1751243126187,0.22810148,108790.0,108780.0,0.76029327]
[1751243126687,0.22810148,108790.0,108780.0,0.5088497]
[1751243127091,0.22810148,108790.0,108780.0,0.3608]
[1751243127286,0.22810148,108790.0,108780.0,0.5078497]
[1751243127484,0.47954505,108790.0,108780.0,0.5078497]
[1751243127990,0.66242919,108790.0,108780.0,0.5078497]
[1751243128190,0.53953715,108790.0,108780.0,0.5078497]
[1751243128378,0.79098072,108790.0,108780.0,0.1470497]
[1751243128584,0.84034505,108790.0,108770.0,0.6181475]
[1751243128785,0.12855452,108780.0,108770.0,0.6181475]
[1751243129094,0.160496,108780.0,108770.0,0.6181475]
[1751243129289,0.160496,108780.0,108770.0,0.6827475]
[1751243129689,0.03194148,108780.0,108770.0,0.6837475]
[1751243129993,0.830136,108780.0,108770.0,0.6469824]
[1751243130188,1.17341483,108780.0,108770.0,0.1838178]
[1751243130392,1.10646031,108780.0,108770.0,0.1838178]
[1751243130892,1.10646031,108780.0,108770.0,0.1858178]
[1751243131198,0.85501674,108780.0,108770.0,0.1858178]
[1751243131492,0.85501674,108780.0,108770.0,0.16739078]
[1751243131887,0.891736,108780.0,108770.0,0.16739078]
[1751243133098,0.85505898,108780.0,108770.0,0.16739078]
[1751243133795,0.85505898,108780.0,108770.0,0.16939078]
[1751243134299,0.76318148,108780.0,108770.0,0.16939078]
[1751243134486,0.85505898,108780.0,108770.0,0.16939078]
[1751243135188,0.76318148,108780.0,108770.0,0.16939078]
[1751243135388,0.85505898,108780.0,108770.0,0.16939078]
[1751243137192,0.891736,108780.0,108770.0,0.02224066]
[1751243137395,0.891736,108780.0,108770.0,0.16929156]
[1751243138200,0.98362006,108780.0,108770.0,0.16929156]
[1751243138403,0.85506554,108780.0,108770.0,0.16929156]
[1751243138701,0.18542554,108780.0,108770.0,0.16929156]
[1751243138891,0.97570554,108780.0,108770.0,0.73551146]
[1751243139089,0.97569965,108780.0,108770.0,0.80101146]
[1751243139592,0.97569965,108780.0,108770.0,0.54956789]
[1751243140501,0.9573291,108780.0,108770.0,0.54956789]
[1751243141099,1.0208291,108780.0,108770.0,0.54956789]
[1751243141601,1.0190691,108780.0,108770.0,0.54956789]
[1751243142798,1.0180691,108780.0,108770.0,0.54956789]
[1751243143102,1.0180691,108780.0,108770.0,0.56394]
[1751243144302,0.94456148,108780.0,108770.0,0.56394]
[1751243145505,1.0180691,108780.0,108770.0,0.54956789]
[1751243145901,0.94456148,108780.0,108770.0,0.54956789]
[1751243146603,0.94456148,108780.0,108770.0,0.48406789]
[1751243146803,1.28788322,108780.0,108770.0,0.48406789]
[1751243147198,1.03643965,108780.0,108770.0,0.48406789]
[1751243148805,1.86431965,108780.0,108770.0,0.48406789]
[1751243149304,0.92332148,108780.0,108770.0,0.48406789]
[1751243149502,1.76020148,108780.0,108770.0,0.68501951]
[1751243150505,1.85207965,108780.0,108770.0,0.68501951]
[1751243153105,1.76020148,108780.0,108770.0,0.68501951]
[1751243153303,1.76020148,108780.0,108770.0,0.48406789]
[1751243153704,1.9611531,108780.0,108770.0,0.48406789]
[1751243154596,1.76020148,108780.0,108770.0,0.48406789]
[1751243154801,1.9611531,108780.0,108770.0,0.48406789]
[1751243155001,2.03469642,108780.0,108770.0,0.48406789]
[1751243155196,2.03469642,108780.0,108770.0,0.3608]
[1751243155396,2.13787729,108780.0,108770.0,0.1470633]
[1751243155596,2.06433181,108780.0,108770.0,0.1470633]
[1751243156201,1.75596148,108780.0,108770.0,0.1470633]
[1751243156398,1.9569131,108780.0,108770.0,0.1470633]
[1751243157310,1.9555531,108780.0,108770.0,0.1470633]
[1751243157608,1.75460148,108780.0,108770.0,0.1470633]
[1751243157804,1.9555531,108780.0,108770.0,0.1470633]
[1751243159109,1.1242731,108780.0,108770.0,0.1470633]
[1751243159310,2.02889884,108780.0,108770.0,0.1470633]
[1751243159503,2.02889884,108780.0,108760.0,0.77354663]
[1751243159704,1.19781884,108780.0,108770.0,0.1470633]
[1751243160412,2.02745884,108780.0,108770.0,0.1470633]
[1751243160707,1.82650722,108780.0,108770.0,0.1470633]
[1751243161703,1.84483965,108780.0,108770.0,0.1470633]
[1751243161908,1.84483965,108780.0,108770.0,0.1480633]
[1751243163321,1.84483965,108780.0,108770.0,0.001]
[1751243163322,2.26638646,108780.0,108770.0,0.001]
[1751243163522,2.76487015,108780.0,108770.0,0.001]
[1751243163821,0.42155982,108770.0,108750.0,0.1470883]
[1751243164016,1.28086536,108760.0,108740.0,0.78423214]
[1751243164216,0.0641,108750.0,108740.0,0.78423214]
[1751243164417,0.12704148,108750.0,108740.0,0.78523214]
[1751243164619,0.95516148,108750.0,108740.0,0.84713214]
[1751243164821,0.94246096,108750.0,108740.0,0.84713214]
[1751243165313,0.94226096,108750.0,108740.0,0.84713214]
[1751243165515,0.91126096,108750.0,108740.0,0.84713214]
[1751243166126,0.87808096,108750.0,108740.0,0.84713214]
[1751243166328,0.87792096,108750.0,108740.0,0.84713214]
[1751243166820,0.87792096,108750.0,108740.0,0.85413214]
[1751243167025,0.87792096,108750.0,108740.0,0.85813214]
[1751243167824,0.87792096,108750.0,108740.0,0.65718052]
[1751243168024,0.87792096,108750.0,108740.0,0.85813214]
[1751243168225,0.87796096,108750.0,108740.0,0.85813214]
[1751243168423,0.87028096,108750.0,108740.0,0.85813214]
[1751243169726,0.87008096,108750.0,108740.0,0.85813214]
[1751243169923,0.87008096,108750.0,108740.0,0.65718052]
[1751243170127,0.87008096,108750.0,108740.0,0.85813214]
[1751243171124,0.87008096,108750.0,108740.0,0.85713214]
[1751243171331,0.87008096,108750.0,108740.0,0.85813214]
[1751243171628,0.87004096,108750.0,108740.0,0.85813214]
[1751243172430,0.86904096,108750.0,108740.0,0.85813214]
[1751243172628,0.86904096,108750.0,108740.0,0.85713214]
[1751243172829,0.86904096,108750.0,108740.0,0.85813214]
[1751243175434,0.9415332,108750.0,108740.0,0.85813214]
[1751243175821,0.9415332,108750.0,108740.0,0.85713214]
[1751243176025,0.9415332,108750.0,108740.0,0.85813214]
[1751243186135,0.9415332,108750.0,108740.0,0.79623214]
[1751243186440,1.0387332,108750.0,108740.0,0.59528052]
[1751243186637,1.0387332,108750.0,108740.0,0.79623214]
[1751243187928,1.0387332,108750.0,108740.0,0.59528052]
[1751243188239,1.0387332,108750.0,108740.0,0.79623214]
[1751243191143,1.0387332,108750.0,108740.0,0.59528052]
[1751243191345,1.0387332,108750.0,108740.0,0.79623214]
[1751243191543,1.0387332,108750.0,108740.0,0.43543214]
[1751243192247,1.0387332,108750.0,108740.0,0.23448052]
[1751243192734,1.0387332,108750.0,108740.0,0.43543214]
[1751243193238,1.0387332,108750.0,108740.0,0.59528052]
[1751243193439,1.0387332,108750.0,108740.0,0.79623214]
[1751243195049,1.0387332,108750.0,108740.0,0.59528052]
[1751243195248,1.0387332,108750.0,108740.0,0.79623214]
[1751243198648,1.1858235,108750.0,108740.0,0.79623214]
[1751243198844,1.1858235,108750.0,108740.0,0.79523214]
[1751243199044,1.1858235,108750.0,108740.0,0.39765734]
[1751243199446,1.1858235,108750.0,108740.0,0.39865734]
[1751243199643,1.1858235,108750.0,108740.0,0.39765734]
[1751243199844,1.1858235,108750.0,108740.0,0.39865734]
[1751243200044,1.1858235,108750.0,108740.0,0.39765734]
[1751243200543,1.1858235,108750.0,108740.0,0.39865734]
[1751243200749,1.1858235,108750.0,108740.0,0.19670572]
[1751243200951,1.1858235,108750.0,108740.0,0.39765734]
[1751243201252,1.1858235,108750.0,108740.0,0.39865734]
[1751243203847,1.386875,108750.0,108740.0,0.39875722]
[1751243204150,1.386875,108750.0,108740.0,0.39775722]
[1751243204449,1.386875,108750.0,108740.0,0.39875722]
[1751243204644,1.0212532,108750.0,108740.0,0.59980872]
[1751243204845,1.1683435,108750.0,108740.0,0.59980872]
[1751243205447,1.369395,108750.0,108740.0,0.59980872]
[1751243207549,1.2223047,108750.0,108740.0,0.96060872]
[1751243207949,1.367795,108750.0,108740.0,0.96060872]
[1751243209055,1.1667435,108750.0,108740.0,0.96060872]
[1751243209256,1.367795,108750.0,108740.0,0.96060872]
[1751243210155,1.367795,108750.0,108740.0,0.95960872]
[1751243211052,1.367795,108750.0,108740.0,0.59980872]
[1751243212965,1.367795,108750.0,108740.0,0.19770572]
[1751243213155,1.367795,108750.0,108740.0,0.39875722]
[1751243213749,1.367795,108750.0,108740.0,0.39775722]
[1751243214052,1.367795,108750.0,108740.0,0.39875722]
[1751243214250,1.5688465,108750.0,108740.0,0.01283912]
[1751243214550,0.1471039,108740.0,108730.0,0.00091967]
[1751243214756,1.00624838,108740.0,108730.0,0.00091967]
[1751243214952,1.00624838,108740.0,108700.0,0.43529752]
[1751243214953,1.18347005,108740.0,108700.0,0.43529752]
[1751243215157,0.3481947,108720.0,108710.0,0.1481428]
[1751243215452,0.38013618,108720.0,108710.0,0.3491943]
[1751243215660,0.29729298,108720.0,108710.0,0.7099943]
[1751243215854,0.24337248,108720.0,108710.0,0.7099943]
[1751243216156,0.24337248,108720.0,108710.0,0.3491943]
[1751243216560,0.44442398,108720.0,108710.0,0.3541943]
[1751243217251,0.44442398,108720.0,108710.0,0.3561943]
[1751243217759,0.24337248,108720.0,108710.0,0.3562942]
[1751243218260,0.87808148,108720.0,108710.0,0.7170942]
[1751243218558,1.02521238,108720.0,108710.0,0.7814942]
[1751243219658,1.02521238,108720.0,108710.0,0.5803428]
[1751243219858,1.02521238,108720.0,108710.0,0.7814942]
[1751243220056,0.09624148,108720.0,108710.0,0.7814942]
[1751243220259,0.03194148,108720.0,108710.0,0.7814942]
[1751243220664,0.03194148,108720.0,108710.0,1.0147456]
[1751243220850,0.19446148,108720.0,108710.0,1.0147456]
[1751243221557,1.44568,108730.0,108720.0,0.1471309]
[1751243221764,1.6082,108730.0,108720.0,0.9719337]
[1751243222466,0.82804,108730.0,108720.0,0.9719337]
[1751243222764,1.6078,108730.0,108720.0,0.9719337]
[1751243223160,1.6078,108730.0,108720.0,0.9729337]
[1751243223360,0.82804,108730.0,108720.0,0.9729337]
[1751243223661,1.6074,108730.0,108720.0,0.9729337]
[1751243224560,1.60704,108730.0,108720.0,0.9729337]
[1751243224865,1.7542774,108730.0,108720.0,0.9729337]
[1751243225964,1.60716,108730.0,108720.0,0.9729337]
[1751243227068,0.82804,108730.0,108720.0,0.9729337]
[1751243227267,1.60728,108730.0,108720.0,0.9729337]
[1751243228468,1.7543974,108730.0,108720.0,0.7717823]
[1751243229267,1.7855974,108730.0,108720.0,0.7717823]
[1751243229662,1.7855974,108730.0,108720.0,0.7727823]
[1751243230669,1.7855974,108730.0,108720.0,0.1491309]
[1751243230861,1.70298,108730.0,108720.0,0.7110823]
[1751243231060,0.82804,108730.0,108720.0,0.9122337]
[1751243231267,1.60532,108730.0,108720.0,0.9749337]
[1751243231462,1.60532,108730.0,108720.0,0.7737823]
[1751243231673,1.60532,108730.0,108720.0,0.7727823]
[1751243231674,1.7524374,108730.0,108720.0,0.7727823]
[1751243231970,1.7836374,108730.0,108720.0,0.7727823]
[1751243232167,1.7836374,108730.0,108720.0,0.7737823]
[1751243232368,1.9847888,108730.0,108720.0,0.5099309]
[1751243232572,1.9847888,108730.0,108700.0,0.36171992]
[1751243232573,0.1471445,108710.0,108700.0,0.36171992]
[1751243232866,1.4856159,108710.0,108700.0,0.148158]
[1751243233072,1.3804645,108710.0,108700.0,0.3493094]
[1751243233370,1.4021565,108710.0,108700.0,0.3483094]
[1751243233569,1.4021565,108710.0,108700.0,0.3493094]
[1751243234173,1.4021565,108710.0,108700.0,0.148158]
[1751243234870,1.4021565,108710.0,108700.0,0.155158]
[1751243236874,1.4021565,108710.0,108700.0,0.154158]
[1751243237064,1.4021565,108710.0,108700.0,0.3563094]
[1751243237976,1.4021565,108710.0,108700.0,0.154158]
[1751243238174,1.4021565,108710.0,108700.0,0.3563094]
[1751243238676,1.4021565,108710.0,108700.0,0.3553094]
[1751243238976,1.4021565,108710.0,108700.0,0.3563094]
[1751243241473,1.4021565,108710.0,108700.0,0.155158]
[1751243241675,1.4021565,108710.0,108700.0,0.3553094]
[1751243241875,1.4021565,108710.0,108700.0,0.3563094]
[1751243242088,0.117692,108710.0,108700.0,0.7171094]
[1751243242291,1.0067965,108710.0,108700.0,0.7804094]
[1751243242483,0.2338365,108710.0,108700.0,0.7804094]
[1751243242678,0.821372,108710.0,108700.0,0.7804094]
[1751243242888,0.9685165,108710.0,108700.0,0.7804094]
[1751243243283,0.9685165,108710.0,108700.0,0.7171094]
[1751243243478,1.0327165,108710.0,108700.0,0.7171094]
[1751243244085,1.5946679,108710.0,108700.0,0.155158]
[1751243244293,1.5946679,108710.0,108700.0,0.007]
[1751243248984,1.3935165,108710.0,108700.0,0.007]
[1751243249190,1.5946679,108710.0,108700.0,0.007]
[1751243251490,1.69143784,108710.0,108700.0,0.007]
[1751243251692,0.147158,108700.0,108690.0,0.00218819]
[1751243251888,0.1471851,108680.0,108670.0,0.64350467]
[1751243252090,1.1335085,108680.0,108670.0,0.36172017]
[1751243252397,1.688619,108680.0,108670.0,0.00092017]
[1751243252891,1.76068425,108680.0,108670.0,0.00092017]
[1751243253583,1.85270173,108680.0,108670.0,0.00092017]
[1751243253990,1.85270173,108680.0,108670.0,0.00692017]
[1751243254193,1.85370173,108680.0,108670.0,0.00692017]
[1751243254498,1.85598173,108680.0,108670.0,0.00092017]
[1751243255292,0.1472257,108650.0,108640.0,0.78371833]
[1751243255588,0.9109057,108650.0,108640.0,0.6588764]
[1751243255995,0.9109057,108650.0,108640.0,0.8600278]
[1751243256690,0.9109057,108650.0,108640.0,0.8630278]
[1751243257197,0.9109057,108650.0,108640.0,0.8670278]
[1751243257599,0.9109057,108650.0,108640.0,0.6658764]
[1751243257799,0.9109057,108650.0,108640.0,0.8670278]
[1751243258300,0.9109057,108650.0,108640.0,0.85281833]
[1751243259299,0.93232541,108650.0,108640.0,0.86720635]
[1751243259700,0.78509971,108650.0,108640.0,0.86720635]
[1751243259995,0.78509971,108650.0,108640.0,0.66605495]
[1751243260196,0.93232541,108650.0,108640.0,0.86720635]
[1751243261497,0.78509971,108650.0,108640.0,0.86720635]
[1751243261688,0.93232541,108650.0,108640.0,0.86720635]
[1751243261996,0.78509971,108650.0,108640.0,0.86720635]
[1751243262302,0.93232541,108650.0,108640.0,0.66605495]
[1751243262494,0.78509971,108650.0,108640.0,0.86720635]
[1751243262999,0.93232541,108650.0,108640.0,0.86720635]
[1751243263194,0.93232541,108650.0,108640.0,0.85281833]
[1751243264000,0.96242541,108650.0,108640.0,0.85281833]
[1751243264906,0.96242541,108650.0,108640.0,0.77920083]
[1751243265101,0.96242541,108650.0,108640.0,0.57804943]
[1751243265996,0.96242541,108650.0,108640.0,0.77920083]
[1751243266194,0.99442541,108650.0,108640.0,0.77920083]
[1751243267406,0.99442541,108650.0,108640.0,0.57804943]
[1751243267599,0.99442541,108650.0,108640.0,0.77920083]
[1751243268495,0.99442541,108650.0,108640.0,0.57804943]
[1751243268807,0.99442541,108650.0,108640.0,0.77920083]
[1751243269106,1.02692541,108650.0,108640.0,0.77920083]
[1751243269502,0.99442541,108650.0,108640.0,0.77920083]
[1751243270504,0.96242541,108650.0,108640.0,0.77920083]
[1751243272606,0.02141971,108650.0,108640.0,0.77920083]
[1751243272905,0.77885971,108650.0,108640.0,0.77920083]
[1751243273908,0.7882693,108660.0,108650.0,0.1472257]
[1751243274103,0.9414693,108660.0,108650.0,0.8073771]
[1751243274412,0.9414693,108660.0,108650.0,0.6062257]
[1751243274598,0.9414693,108660.0,108650.0,0.8073771]
[1751243275600,0.9414693,108660.0,108650.0,0.8093771]
[1751243275799,0.9414693,108660.0,108650.0,0.82376471]
[1751243276003,0.9414693,108660.0,108650.0,0.62261331]
[1751243276198,0.9414693,108660.0,108650.0,0.82376471]
[1751243276609,0.9046634,108660.0,108650.0,0.82376471]
[1751243277408,0.75744,108660.0,108650.0,0.82576471]
[1751243278402,0.26681533,108670.0,108660.0,0.1472122]
[1751243278609,0.9693586,108670.0,108660.0,0.4114636]
[1751243279212,1.02437533,108670.0,108660.0,0.4114636]
[1751243279914,0.91007673,108670.0,108660.0,0.4114636]
[1751243280412,0.20821673,108670.0,108660.0,0.973415]
[1751243280614,0.16019326,108680.0,108670.0,0.1471986]
[1751243280806,0.91715326,108680.0,108670.0,0.41065]
[1751243281013,0.91703326,108680.0,108670.0,0.44135]
[1751243281205,0.31339326,108680.0,108670.0,0.44135]
[1751243281411,0.18631128,108680.0,108670.0,0.80215]
[1751243281613,0.03311128,108680.0,108670.0,0.80215]
[1751243281916,1.05511554,108690.0,108680.0,0.1471851]
[1751243282212,1.05511554,108690.0,108680.0,0.7744365]
[1751243282409,0.98156,108690.0,108680.0,0.7744365]
[1751243283207,0.82836,108690.0,108680.0,0.7744365]
[1751243283410,0.300358,108700.0,108690.0,0.1471715]
[1751243283603,0.1532,108700.0,108690.0,1.0062743]
[1751243284316,0.32798898,108700.0,108690.0,0.8051229]
[1751243284515,0.32798898,108700.0,108690.0,1.0062743]
[1751243284715,0.32798898,108700.0,108690.0,0.8051229]
[1751243285414,0.18383098,108700.0,108690.0,0.8051229]
[1751243285616,0.03063098,108700.0,108690.0,0.8051229]
[1751243285809,0.18379098,108700.0,108690.0,0.8051229]
[1751243286010,0.15616,108700.0,108690.0,0.8051229]
[1751243286208,0.15816,108700.0,108690.0,1.0062743]
[1751243286915,0.17905888,108700.0,108690.0,1.0062743]
[1751243289415,0.02589888,108700.0,108690.0,1.0062743]
[1751243290004,0.02589888,108700.0,108690.0,1.6110743]
[1751243290414,0.02587183,108700.0,108690.0,1.6110743]
[1751243290815,0.005,108700.0,108690.0,1.6110743]
[1751243291111,0.02951897,108710.0,108700.0,0.147158]
[1751243291312,0.0503902,108710.0,108700.0,0.7718094]
[1751243291512,0.02187123,108710.0,108700.0,0.7718094]
[1751243292316,0.001,108710.0,108700.0,0.7718094]
[1751243292615,0.004,108710.0,108700.0,0.7718094]
[1751243294008,0.0322629,108710.0,108700.0,0.7718094]
[1751243294515,0.004,108710.0,108700.0,0.7718094]
[1751243307126,0.004,108710.0,108700.0,0.570658]
[1751243307319,0.004,108710.0,108700.0,0.7718094]
[1751243315926,0.22352499,108730.0,108720.0,0.1471309]
[1751243316123,0.25452499,108730.0,108720.0,0.9102337]
[1751243316324,0.46594239,108730.0,108720.0,0.5079309]
[1751243317130,0.46894239,108730.0,108720.0,0.5079309]
[1751243317329,0.47294239,108730.0,108720.0,0.7090823]
[1751243317931,0.47294239,108730.0,108720.0,0.5079309]
[1751243318533,0.50142975,108730.0,108720.0,0.5079309]
[1751243318728,0.1471309,108720.0,108710.0,0.1471309]
[1751243318928,0.1471445,108710.0,108700.0,0.5815192]
[1751243319231,0.5954159,108710.0,108700.0,0.5815192]
[1751243319634,0.3942645,108710.0,108700.0,0.5815192]
[1751243320031,0.24712,108710.0,108700.0,0.5815192]
[1751243320432,0.24712,108710.0,108700.0,0.5835192]
[1751243321240,0.24712,108710.0,108700.0,0.7846706]
[1751243322530,0.24712,108710.0,108700.0,0.5835192]
[1751243322834,0.24712,108710.0,108700.0,0.7846706]
[1751243326639,0.3942644,108710.0,108700.0,0.7846706]
[1751243327833,0.2425444,108710.0,108700.0,0.7846706]
[1751243328034,0.21606,108710.0,108700.0,0.7846706]
[1751243328234,0.21606,108710.0,108700.0,0.8476706]
[1751243329237,0.0643,108710.0,108700.0,0.8476706]
[1751243329444,0.21606,108710.0,108700.0,0.8476706]
[1751243330243,0.0329,108720.0,108710.0,0.1471444]
[1751243330434,0.0329,108720.0,108710.0,0.3482958]
[1751243330435,0.81636,108720.0,108710.0,0.3482958]
[1751243330636,0.81636,108720.0,108710.0,0.3803958]
[1751243331237,0.21516,108720.0,108710.0,0.3803958]
[1751243331542,0.81632,108720.0,108710.0,0.7411958]
[1751243331735,0.81632,108720.0,108710.0,0.7741958]
[1751243331935,0.81732,108720.0,108710.0,0.7741958]
[1751243332434,0.81832,108720.0,108710.0,0.7741958]
[1751243332745,0.78542,108720.0,108710.0,0.7741958]
[1751243333342,0.18426,108720.0,108710.0,0.7741958]
[1751243334536,0.002,108720.0,108710.0,0.7741958]
[1751243334739,0.15356,108720.0,108710.0,0.7741958]
[1751243338243,1.48454404,108740.0,108710.0,0.864986]
[1751243338244,0.90307554,108740.0,108710.0,0.864986]
[1751243338439,1.11763554,108740.0,108730.0,0.7090688]
[1751243338636,1.1911839,108740.0,108730.0,0.7090688]
[1751243338832,1.2213839,108740.0,108730.0,0.7090688]
[1751243339636,1.2263839,108740.0,108730.0,0.7090688]
[1751243340947,1.2273839,108740.0,108730.0,0.7090688]
[1751243341347,1.25178164,108740.0,108730.0,0.7090688]
[1751243341648,1.10367774,108740.0,108730.0,0.7090688]
[1751243342248,1.17703278,108740.0,108730.0,0.7090688]
[1751243342747,1.32413668,108740.0,108730.0,0.7090688]
[1751243343738,1.17703278,108740.0,108730.0,0.7090688]
[1751243344343,1.32413668,108740.0,108730.0,0.7090688]
[1751243345248,1.17703278,108740.0,108730.0,0.7090688]
[1751243345448,1.32413668,108740.0,108730.0,0.7090688]
[1751243346246,1.52528808,108740.0,108720.0,0.7372922]
[1751243346446,0.7479174,108730.0,108720.0,0.4586096]
[1751243346641,1.0112688,108730.0,108720.0,0.2206777]
[1751243346946,0.1471309,108720.0,108710.0,0.5815015]
[1751243347141,0.2421309,108720.0,108710.0,0.5815015]
[1751243347543,0.2421309,108720.0,108710.0,0.2207015]
[1751243348249,0.9964109,108720.0,108710.0,0.2207015]
[1751243349151,0.9964109,108720.0,108710.0,0.4218529]
[1751243351764,0.1471445,108710.0,108700.0,0.5815209]
[1751243351961,0.1471445,108710.0,108700.0,0.7826723]
[1751243351962,0.1773445,108710.0,108700.0,0.7826723]
[1751243352156,0.2084445,108710.0,108700.0,0.7826723]
[1751243353462,0.5692445,108710.0,108700.0,0.4218723]
[1751243353968,0.5692445,108710.0,108700.0,0.4228723]
[1751243354654,0.7703959,108710.0,108700.0,0.1849327]
[1751243355060,0.7713959,108710.0,108700.0,0.1839327]
[1751243356066,0.7723959,108710.0,108700.0,0.1839327]
[1751243359470,0.75404,108710.0,108700.0,0.3850841]
[1751243359664,0.002,108710.0,108700.0,0.4463841]
[1751243360068,0.75404,108710.0,108700.0,0.8071841]
[1751243360263,0.75304,108710.0,108700.0,0.8071841]
[1751243360468,0.75404,108710.0,108700.0,0.8071841]
[1751243361270,0.2483156,108720.0,108710.0,0.1471445]
[1751243361462,0.9635727,108720.0,108710.0,0.7090959]
[1751243361662,0.9635727,108720.0,108710.0,0.7713959]
[1751243362463,0.9319727,108720.0,108710.0,0.7713959]
[1751243363263,0.9329727,108720.0,108710.0,0.7713959]
[1751243363458,0.7526,108720.0,108710.0,0.7713959]
[1751243363659,0.8997309,108720.0,108710.0,0.8014959]
[1751243363864,0.9007309,108720.0,108710.0,0.8014959]
[1751243365372,0.3002909,108720.0,108710.0,0.8014959]
[1751243365570,0.1491309,108720.0,108710.0,0.8014959]
[1751243365766,0.75344,108720.0,108710.0,0.8014959]
[1751243367975,0.75336,108720.0,108710.0,0.8014959]
[1751243369477,0.15316,108720.0,108710.0,0.8014959]
[1751243369771,1.14795388,108740.0,108730.0,0.1471267]
[1751243369972,1.21225388,108740.0,108730.0,0.7090781]
[1751243370276,1.88997368,108740.0,108730.0,0.7724781]
[1751243370478,1.85807368,108740.0,108730.0,0.7724781]
[1751243370776,1.71095278,108740.0,108730.0,0.7724781]
[1751243370976,1.11178588,108740.0,108730.0,0.7724781]
[1751243371177,1.86302588,108740.0,108730.0,0.7724781]